Workbook

Sheet 个人项目
A1: 2016-2017学年度学生个人校级评先评优项目情况一览表（专科）
A2: 系 | B2: 校优秀学生奖学金 | I2: 三好学生 | J2: 优秀学生干部 | K2: 优秀团员
B3: 一等奖学金（2000元/人） | D3: 二等奖学金（1000元/人） | F3: 三等奖学金（500元/人） | H3: 小计金额（元）
A4: 电子信息系 | B4: 24 | C4: =B4*2000 -> 48000 | D4: 49 | E4: =D4*1000 -> 49000 | F4: 73 | G4: =F4*500 -> 36500 | H4: =C4+E4+G4 -> 133500 | I4: 81 | J4: 40 | K4: 41
A5: 社会事业系 | B5: 18 | C5: =B5*2000 -> 36000 | D5: 36 | E5: =D5*1000 -> 36000 | F5: 54 | G5: =F5*500 -> 27000 | H5: =C5+E5+G5 -> 99000 | I5: 60 | J5: 30 | K5: 30
A6: 经济贸易系 | B6: 46 | C6: 92000 | D6: 92 | E6: 92000 | F6: 139 | G6: 69500 | H6: 253500 | I6: 154 | J6: 77 | K6: 77
A7: 机电工程系 | B7: 39 | C7: 78000 | D7: 78 | E7: 78000 | F7: 117 | G7: 58500 | H7: 214500 | I7: 130 | J7: 65 | K7: 65
A8: 建筑工程系 | B8: 27 | C8: 54000 | D8: 54 | E8: 54000 | F8: 80 | G8: 40000 | H8: 148000 | I8: 89 | J8: 45 | K8: 44
A9: 园林园艺系 | B9: 8 | C9: 16000 | D9: 16 | E9: 16000 | F9: 25 | G9: 12500 | H9: 44500 | I9: 27 | J9: 14 | K9: 14
A10: 合计 | B10: =SUM(B4:B9) -> 162 | C10: =SUM(C4:C9) -> 324000 | D10: 325 | E10: 325000 | F10: 488 | G10: 244000 | H10: 893000 | I10: 541 | J10: 271 | K10: 271
A12: 2016-2017学年度学生个人校级评先评优项目情况一览表（五年制）
A13: 系 | B13: 校优秀学生奖学金 | I13: 三好学生 | J13: 优秀学生干部 | K13: 优秀团员
B14: 一等奖学金（2000元/人） | D14: 二等奖学金（1000元/人） | F14: 三等奖学金（500元/人） | H14: 小计金额（元）
A15: 社会事业系 | B15: 1 | C15: =B15*2000 -> 2000 | D15: 3 | E15: =D15*1000 -> 3000 | F15: 5 | G15: =F15*500 -> 2500 | H15: =C15+E15+G15 -> 7500 | I15: 5 | J15: 3 | K15: 3
A16: 经济贸易系 | B16: 2 | C16: =B16*2000 -> 4000 | D16: 3 | E16: =D16*1000 -> 3000 | F16: 4 | G16: =F16*500 -> 2000 | H16: =C16+E16+G16 -> 9000 | I16: 5 | J16: 2 | K16: 2
A17: 机电工程系 | B17: 2 | C17: =B17*2000 -> 4000 | D17: 5 | E17: =D17*1000 -> 5000 | F17: 6 | G17: =F17*500 -> 3000 | H17: =C17+E17+G17 -> 12000 | I17: 6 | J17: 3 | K17: 3
A18: 建筑工程系 | B18: 2 | C18: =B18*2000 -> 4000 | D18: 4 | E18: =D18*1000 -> 4000 | F18: 6 | G18: =F18*500 -> 3000 | H18: =C18+E18+G18 -> 11000 | I18: 6 | J18: 4 | K18: 4
A19: 电大
A20: 技师学院
A21: 合计 | B21: =SUM(B15:B18) -> 7 | C21: 14000 | D21: 15 | E21: 15000 | F21: 21 | G21: 10500 | H21: 39500 | I21: 22 | J21: 12 | K21: 12
A23: 系 | B23: 校优秀学生奖学金 | I23: 三好学生 | J23: 优秀学生干部 | K23: 优秀团员
B24: 一等奖学金（2000元/人） | D24: 二等奖学金（1000元/人） | F24: 三等奖学金（500元/人） | H24: 小计金额（元）
A25: 总计 | B25: =SUM(B21,B10) -> 169 | C25: =SUM(C21,C10) -> 338000 | D25: 340 | E25: 340000 | F25: 509 | G25: 254500 | H25: 932500 | I25: 563 | J25: 283 | K25: 283

Sheet 集体项目
A1: 2017-2018学年度院级先进集体评选项目一览表
A2: 序号 | B2: 院(系)/部 | C2: 年级 | D2: 专业 | E2: 班级名称 | F2: 评选集体项目
A3: 1 | B3: 电子信息系 | C3: 2017 | D3: 计算机网络技术 | E3: 2017级计算机网络技术2班 | F3: 先进班集体
A4: 2 | B4: 电子信息系 | C4: 2017 | D4: 计算机应用技术（大数据） | E4: 2017级计算机应用技术（大数据）1班 | F4: 先进班集体
A5: 3 | B5: 社会事业系 | C5: 2016 | D5: 旅游管理 | E5: 2016级旅游管理 | F5: 先进班集体
A6: 4 | B6: 社会事业系 | C6: 2017 | D6: 旅游管理 | E6: 2017级旅游管理 | F6: 先进班集体
A7: 5 | B7: 经济贸易系 | C7: 2016 | D7: 物流管理 | E7: 2016级物流1班 | F7: 先进班集体
A8: 6 | B8: 经济贸易系 | C8: 2017 | D8: 电子商务 | E8: 2017级电商2班 | F8: 先进班集体
A9: 7 | B9: 经济贸易系 | C9: 2017 | D9: 会计电算化 | E9: 2017级会计1班 | F9: 先进班集体
A10: 8 | B10: 机电工程系 | C10: 2016 | D10: 模具设计与制造 | E10: 2016级模具设计与制造1班 | F10: 先进班集体
A11: 9 | B11: 机电工程系 | C11: 2016 | D11: 机电一体化技术 | E11: 2016级机电一体化技术2班 | F11: 先进班集体
A12: 10 | B12: 机电工程系 | C12: 2017 | D12: 汽车制造与装配技术 | E12: 2017级汽车制造与装配技术1班 | F12: 先进班集体
A13: 11 | B13: 建筑工程系 | C13: 2017 | D13: 建筑装饰工程技术 | E13: 2017建筑装饰工程技术1班 | F13: 先进班集体
A14: 12 | B14: 建筑工程系 | C14: 2016 | D14: 工程造价 | E14: 2016级工程造价1班 | F14: 先进班集体
A15: 13 | B15: 园林园艺系 | C15: 2017 | D15: 园艺技术 | E15: 园艺技术 | F15: 先进班集体
A17: 1 | B17: 电子信息系 | C17: 2017 | D17: 应用电子技术 | E17: 2017级应用电子技术1班 | F17: 优秀团支部
A18: 2 | B18: 电子信息系 | C18: 2017 | D18: 计算机应用技术 | E18: 计算机应用技术3班 | F18: 优秀团支部
A19: 3 | B19: 社会事业系 | C19: 2017 | D19: 酒店管理 | E19: 2017级酒店管理3班（国际邮轮乘务） | F19: 优秀团支部
A20: 4 | B20: 社会事业系 | C20: 2017 | D20: 服装设计与工艺 | E20: 2017级服装设计与工艺 | F20: 优秀团支部
A21: 5 | B21: 经济贸易系 | C21: 2017 | D21: 会计电算化 | E21: 20117会计2班 | F21: 优秀团支部
A22: 6 | B22: 经济贸易系 | C22: 2016 | D22: 市场营销 | E22: 2016营销3班 | F22: 优秀团支部
A23: 7 | B23: 经济贸易系 | C23: 2016 | D23: 电子商务 | E23: 2016电商3班 | F23: 优秀团支部
A24: 8 | B24: 机电工程系 | C24: 2016 | D24: 机电一体化技术 | E24: 2016级机电一体化技术3班 | F24: 优秀团支部
A25: 9 | B25: 机电工程系 | C25: 2017 | D25: 数控技术 | E25: 2017级数控技术1班 | F25: 优秀团支部
A26: 10 | B26: 机电工程系 | C26: 2017 | D26: 汽车营销与服务 | E26: 2017级汽车营销与服务1班 | F26: 优秀团支部
A27: 11 | B27: 建筑工程系 | C27: 2017 | D27: 工程造价 | E27: 2017级工程造价2班 | F27: 优秀团支部
A28: 12 | B28: 建筑工程系 | C28: 2016 | D28: 建筑工程技术 | E28: 2016级建筑工程技术2班 | F28: 优秀团支部
A29: 13 | B29: 园林园艺系 | C29: 2016 | D29: 园林技术 | E29: 园林技术 | F29: 优秀团支部
